fUST/lending_fUST_20250623
["ID","MTS","AMOUNT","RATE_DAILY","PERIOD"]
[367085502,1750653041670,-460.0,0.00021917,2]
[367085503,1750653041680,-460.0,0.00021917,2]
[367085504,1750653041692,-531.76,0.00021917,2]
[367085505,1750653041701,-460.0,0.00021917,2]
[367085506,1750653041710,-460.0,0.00021917,2]
[367085507,1750653041720,-460.0,0.00021917,2]
[367085508,1750653041730,-976.27,0.00021917,2]
[367085509,1750653041739,-563.72,0.00021917,2]
[367085510,1750653041749,-460.0,0.00021917,2]
[367085511,1750653041759,-460.0,0.00021917,2]
[367085512,1750653041769,-1323.36,0.00021917,2]
[367085513,1750653041779,-460.0,0.00021917,2]
[367085514,1750653041789,-523.35617931,0.00021917,2]
[367085515,1750653041798,-460.0,0.00021917,2]
[367085516,1750653041808,-460.0,0.00021917,2]
[367085517,1750653041818,-460.0,0.00021917,2]
[367085518,1750653041828,-460.0,0.00021917,2]
[367085519,1750653041837,-891.24,0.00021917,2]
[367085520,1750653041848,-1240.95,0.00021917,2]
[367085521,1750653041857,-460.0,0.00021917,2]
[367085522,1750653041866,-460.0,0.00021917,2]
[367085523,1750653041876,-460.0,0.00021917,2]
[367085524,1750653041885,-460.0,0.00021917,2]
[367085525,1750653041895,-460.0,0.00021917,2]
[367085526,1750653041904,-460.0,0.00021917,2]
[367085527,1750653041913,-1276.84,0.00021917,2]
[367085528,1750653041923,-405.37084892,0.00021917,2]
[367085529,1750653041933,-460.0,0.00021917,2]
[367085530,1750653041942,-460.0,0.00021917,2]
[367085531,1750653041952,-460.0,0.00021917,2]
[367085532,1750653041961,-315.29212914,0.00021917,2]
[367085533,1750653041971,-460.0,0.00021917,2]
[367085534,1750653041980,-460.0,0.00021917,2]
[367085535,1750653041989,-460.0,0.00021917,2]
[367085536,1750653041997,-460.0,0.00021917,2]
[367085537,1750653042007,-529.80427426,0.00021917,2]
[367085538,1750653042016,-460.0,0.00021917,2]
[367085539,1750653042026,-460.0,0.00021917,2]
[367085540,1750653042035,-772.74,0.00021917,2]
[367085541,1750653042044,-460.0,0.00021917,2]
[367085542,1750653042054,-460.0,0.00021917,2]
[367085543,1750653042063,-1067.55,0.00021917,2]
[367085544,1750653042073,-507.23,0.00021917,2]
[367085545,1750653042082,-460.0,0.00021917,2]
[367085546,1750653042092,-460.0,0.00021917,2]
[367085547,1750653042102,-460.0,0.00021917,2]
[367085548,1750653042111,-460.0,0.00021917,2]
[367085549,1750653042120,-460.0,0.00021917,2]
[367085550,1750653042130,-460.0,0.00021917,2]
[367085551,1750653042139,-460.0,0.00021917,2]
[367085552,1750653042149,-460.0,0.00021917,2]
[367085553,1750653042158,-595.75,0.00021917,2]
[367085554,1750653042168,-1586.08,0.00021917,2]
[367085555,1750653042178,-460.0,0.00021917,2]
[367085556,1750653042187,-460.0,0.00021917,2]
[367085557,1750653042196,-537.69,0.00021917,2]
[367085558,1750653042205,-682.13,0.00021917,2]
[367085559,1750653042215,-499.85657197,0.00021917,2]
[367085560,1750653042224,-460.0,0.00021917,2]
[367085561,1750653042234,-460.0,0.00021917,2]
[367085562,1750653042244,-460.0,0.00021917,2]
[367085563,1750653042253,-460.0,0.00021917,2]
[367085564,1750653042263,-460.0,0.00021917,2]
[367085565,1750653042273,-460.0,0.00021917,2]
[367085566,1750653042282,-1442.25,0.00021917,2]
[367085567,1750653042292,-460.0,0.00021917,2]
[367085568,1750653042301,-460.0,0.00021917,2]
[367085569,1750653042311,-460.0,0.00021917,2]
[367085570,1750653042320,-886.71,0.00021917,2]
[367085571,1750653042329,-460.0,0.00021917,2]
[367085572,1750653042339,-460.0,0.00021917,2]
[367085573,1750653042349,-460.0,0.00021917,2]
[367085574,1750653042359,-460.0,0.00021917,2]
[367085575,1750653042368,-460.0,0.00021917,2]
[367085576,1750653042378,-864.43,0.00021917,2]
[367085577,1750653042388,-460.0,0.00021917,2]
[367085578,1750653042397,-460.0,0.00021917,2]
[367085579,1750653042407,-460.0,0.00021917,2]
[367085580,1750653042416,-460.0,0.00021917,2]
[367085581,1750653042426,-460.0,0.00021917,2]
[367085582,1750653042435,-460.0,0.00021917,2]
[367085583,1750653042444,-460.0,0.00021917,2]
[367085584,1750653042453,-485.73,0.00021917,2]
[367085585,1750653042463,-488.93,0.00021917,2]
[367085586,1750653042472,-2679.13,0.00021917,2]
[367085587,1750653042482,-2679.13,0.00021917,2]
[367085588,1750653042492,-2679.13,0.00021917,2]
[367085589,1750653042501,-2679.13,0.00021917,2]
[367085590,1750653042510,-2679.13,0.00021917,2]
[367085591,1750653042519,-460.0,0.00021917,2]
[367085592,1750653042529,-2679.13,0.00021917,2]
[367085593,1750653042538,-2679.13,0.00021917,2]
[367085594,1750653042547,-2679.13,0.00021917,2]
[367085595,1750653042556,-2679.13,0.00021917,2]
[367085596,1750653042565,-2679.13,0.00021917,2]
[367085597,1750653042575,-460.0,0.00021917,2]
[367085598,1750653042584,-2679.13,0.00021917,2]
[367085599,1750653042593,-2679.13,0.00021917,2]
[367085600,1750653042602,-2679.13,0.00021917,2]
[367085601,1750653042612,-460.0,0.00021917,2]
[367085602,1750653042621,-2679.13,0.00021917,2]
[367085603,1750653042630,-2679.13,0.00021917,2]
[367085604,1750653042639,-2679.13,0.00021917,2]
[367085605,1750653042649,-2679.13,0.00021917,2]
[367085606,1750653042658,-2679.13,0.00021917,2]
[367085607,1750653042667,-460.0,0.00021917,2]
[367085608,1750653042677,-2679.13,0.00021917,2]
[367085609,1750653042692,-2181.34,0.00021917,2]
[367085610,1750653042702,-2679.13,0.00021917,2]
[367085611,1750653042712,-2679.13,0.00021917,2]
[367085612,1750653042723,-2679.13,0.00021917,2]
[367085613,1750653042734,-2679.13,0.00021917,2]
[367085614,1750653042744,-2679.31232324,0.00021917,2]
[367085615,1750653042754,-557.88,0.00021917,2]
[367085616,1750653042765,-460.0,0.00021917,2]
[367085617,1750653042775,-677.44,0.00021917,2]
[367085618,1750653042785,-460.0,0.00021917,2]
[367085619,1750653042795,-460.0,0.00021917,2]
[367085620,1750653042806,-460.0,0.00021917,2]
[367085621,1750653042815,-460.0,0.00021917,2]
[367085622,1750653042825,-460.0,0.00021917,2]
[367085623,1750653042834,-460.0,0.00021917,2]
[367085624,1750653042843,-460.0,0.00021917,2]
[367085625,1750653042853,-464.23441407,0.00021917,2]
[367085626,1750653042862,-400.5505396,0.00021917,2]
[367085627,1750653042872,-460.0,0.00021917,2]
[367085628,1750653042881,-460.0,0.00021917,2]
[367085629,1750653042890,-805.25,0.00021917,2]
[367085630,1750653042899,-460.0,0.00021917,2]
[367085631,1750653042908,-466.05,0.00021917,2]
[367085632,1750653042917,-460.0,0.00021917,2]
[367085633,1750653042926,-460.0,0.00021917,2]
[367085634,1750653042936,-460.0,0.00021917,2]
[367085635,1750653042945,-460.0,0.00021917,2]
[367085636,1750653042954,-460.0,0.00021917,2]
[367085637,1750653042964,-460.0,0.00021917,2]
[367085639,1750653042974,-460.0,0.00021917,2]
[367085641,1750653042983,-460.0,0.00021917,2]
[367085643,1750653042993,-460.0,0.00021917,2]
[367085645,1750653043004,-538.38,0.00021917,2]
[367085646,1750653043013,-460.0,0.00021917,2]
[367085648,1750653043023,-460.0,0.00021917,2]
[367085650,1750653043033,-182.076279,0.00021917,2]
[367085652,1750653043042,-460.0,0.00021917,2]
[367085653,1750653043051,-460.0,0.00021917,2]
[367085654,1750653043060,-460.0,0.00021917,2]
[367085655,1750653043069,-460.45162418,0.00021917,2]
[367085656,1750653043078,-460.0,0.00021917,2]
[367085657,1750653043088,-460.0,0.00021917,2]
[367085658,1750653043097,-460.0,0.00021917,2]
[367085659,1750653043106,-1586.45,0.00021917,2]
[367085661,1750653043116,-460.0,0.00021917,2]
[367085663,1750653043125,-460.0,0.00021917,2]
[367085664,1750653043134,-460.0,0.00021917,2]
[367085665,1750653043143,-445.17769702,0.00021917,2]
[367085666,1750653043151,-460.0,0.00021917,2]
[367085667,1750653043161,-460.0,0.00021917,2]
[367085668,1750653043170,-460.0,0.00021917,2]
[367085669,1750653043179,-460.0,0.00021917,2]
[367085670,1750653043188,-460.0,0.00021917,2]
[367085671,1750653043197,-500.0,0.00021917,2]
[367085672,1750653043206,-460.0,0.00021917,2]
[367085673,1750653043215,-460.0,0.00021917,2]
[367085674,1750653043225,-460.68420026,0.00021917,2]
[367085675,1750653043234,-1074.53,0.00021917,2]
[367085676,1750653043243,-460.0,0.00021917,2]
[367085677,1750653043252,-460.0,0.00021917,2]
[367085678,1750653043261,-460.0,0.00021917,2]
[367085679,1750653043271,-460.0,0.00021917,2]
[367085680,1750653043280,-460.0,0.00021917,2]
[367085681,1750653043290,-460.0,0.00021917,2]
[367085682,1750653043299,-1994.63,0.00021917,2]
[367085683,1750653043308,-179.2834103,0.00021917,2]
[367085684,1750653043317,-460.0,0.00021917,2]
[367085685,1750653043329,-460.0,0.00021917,2]
[367085686,1750653043340,-460.0,0.00021917,2]
[367085687,1750653043349,-460.0,0.00021917,2]
[367085688,1750653043359,-546.18,0.00021917,2]
[367085689,1750653043368,-450.0,0.00021917,2]
[367085690,1750653043377,-460.0,0.00021917,2]
[367085691,1750653043387,-460.0,0.00021917,2]
[367085692,1750653043396,-460.0,0.00021917,2]
[367085693,1750653043405,-460.0,0.00021917,2]
[367085694,1750653043414,-460.0,0.00021917,2]
[367085695,1750653043423,-837.71,0.00021917,2]
[367085696,1750653043432,-460.0,0.00021917,2]
[367085697,1750653043442,-223.30599992,0.00021917,2]
[367085698,1750653043451,-460.0,0.00021917,2]
[367085699,1750653043460,-460.0,0.00021917,2]
[367085700,1750653043470,-460.0,0.00021917,2]
[367085701,1750653043479,-460.0,0.00021917,2]
[367085702,1750653043488,-460.0,0.00021917,2]
[367085703,1750653043497,-599.88,0.00021917,2]
[367085704,1750653043507,-460.0,0.00021917,2]
[367085705,1750653043516,-1385.94,0.00021917,2]
[367085706,1750653043525,-460.0,0.00021917,2]
[367085707,1750653043534,-539.68,0.00021917,2]
[367085708,1750653043544,-748.28,0.00021917,2]
[367085709,1750653043555,-460.0,0.00021917,2]
[367085710,1750653043564,-460.0,0.00021917,2]
[367085711,1750653043573,-460.0,0.00021917,2]
[367085712,1750653043582,-460.0,0.00021917,2]
[367085713,1750653043591,-460.0,0.00021917,2]
[367085714,1750653043601,-581.94169571,0.00021917,2]
[367085715,1750653043611,-460.0,0.00021917,2]
[367085716,1750653043622,-300.0,0.00021917,2]
[367085717,1750653043632,-460.0,0.00021917,2]
[367085718,1750653043641,-460.0,0.00021917,2]
[367085719,1750653043651,-460.0,0.00021917,2]
[367085720,1750653043660,-460.0,0.00021917,2]
[367085721,1750653043670,-460.0,0.00021917,2]
[367085722,1750653043679,-460.0,0.00021917,2]
[367085723,1750653043693,-460.0,0.00021917,2]
[367085724,1750653043703,-460.0,0.00021917,2]
[367085725,1750653043712,-460.0,0.00021917,2]
[367085726,1750653043722,-514.01,0.00021917,2]
[367085727,1750653043732,-460.0,0.00021917,2]
[367085728,1750653043742,-460.0,0.00021917,2]
[367085729,1750653043751,-621.15,0.00021917,2]
[367085730,1750653043761,-460.0,0.00021917,2]
[367085731,1750653043770,-460.0,0.00021917,2]
[367085732,1750653043779,-460.0,0.00021917,2]
[367085733,1750653043788,-460.81787434,0.00021917,2]
[367085734,1750653043797,-460.0,0.00021917,2]
[367085735,1750653043807,-1107.93,0.00021917,2]
[367085736,1750653043816,-460.0,0.00021917,2]
[367085737,1750653043825,-460.0,0.00021917,2]
[367085739,1750653043835,-478.41,0.00021917,2]
[367085741,1750653043845,-1117.76,0.00021917,2]
[367085743,1750653043855,-460.17648486,0.00021917,2]
[367085744,1750653043864,-460.0,0.00021917,2]
[367085745,1750653043874,-734.2,0.00021917,2]
[367085746,1750653043883,-460.0,0.00021917,2]
[367085747,1750653043892,-525.83812437,0.00021917,2]
[367085748,1750653043902,-460.0,0.00021917,2]
[367085749,1750653043911,-460.0,0.00021917,2]
[367085750,1750653043921,-460.0,0.00021917,2]
[367085751,1750653043930,-498.65,0.00021917,2]
[367085752,1750653043939,-460.0,0.00021917,2]
[367085753,1750653043948,-460.0,0.00021917,2]
[367085754,1750653043958,-460.0,0.00021917,2]
[367085755,1750653043967,-158.50184418,0.00021917,2]
[367085756,1750653043976,-460.18263914,0.00021917,2]
[367085757,1750653043985,-460.0,0.00021917,2]
[367085758,1750653043996,-460.0,0.00021917,2]
[367085759,1750653044005,-691.77,0.00021917,2]
[367085760,1750653044015,-460.0,0.00021917,2]
[367085761,1750653044024,-460.0,0.00021917,2]
[367085762,1750653044034,-681.97,0.00021917,2]
[367085763,1750653044043,-235.83248476,0.00021917,2]
[367085764,1750653044052,-7619.48,0.00021917,2]
[367085765,1750653044061,-460.0,0.00021917,2]
[367085766,1750653044070,-460.0,0.00021917,2]
[367085767,1750653044079,-585.32318055,0.00021917,2]
[367085768,1750653044088,-460.0,0.00021917,2]
[367085769,1750653044097,-1792.56,0.00021917,2]
[367085770,1750653044106,-154.86319216,0.00021917,2]
[367085771,1750653044116,-460.0,0.00021917,2]
[367085772,1750653044125,-460.0,0.00021917,2]
[367085773,1750653044134,-460.0,0.00021917,2]
[367085774,1750653044143,-1063.27,0.00021917,2]
[367085775,1750653044152,-460.0,0.00021917,2]
[367085776,1750653044161,-402.03869345,0.00021917,2]
[367085777,1750653044170,-460.0,0.00021917,2]
[367085778,1750653044179,-460.0,0.00021917,2]
[367085779,1750653044188,-460.0,0.00021917,2]
[367085780,1750653044197,-460.0,0.00021917,2]
[367085781,1750653044207,-460.0,0.00021917,2]
[367085782,1750653044216,-460.0,0.00021917,2]
[367085783,1750653044373,-460.0,0.00021917,2]
[367085784,1750653044405,-697.66,0.00021917,2]
[367085785,1750653044415,-460.0,0.00021917,2]
[367085786,1750653044424,-500.0,0.00021917,2]
[367085787,1750653044434,-460.0,0.00021917,2]
[367085788,1750653044444,-460.0,0.00021917,2]
[367085789,1750653044453,-893.7,0.00021917,2]
[367085790,1750653044463,-460.0,0.00021917,2]
[367085791,1750653044472,-460.0,0.00021917,2]
[367085792,1750653044481,-460.0,0.00021917,2]
[367085793,1750653044491,-2031.79,0.00021917,2]
[367085794,1750653044501,-460.0,0.00021917,2]
[367085795,1750653044510,-622.27,0.00021917,2]
[367085796,1750653044520,-6328.06,0.00021917,2]
[367085797,1750653044529,-1119.87,0.00021917,2]
[367085798,1750653044538,-460.0,0.00021917,2]
[367085799,1750653044547,-858.02,0.00021917,2]
[367085800,1750653044557,-460.0,0.00021917,2]
[367085801,1750653044566,-460.0,0.00021917,2]
[367085802,1750653044576,-460.0,0.00021917,2]
[367085803,1750653044585,-460.0,0.00021917,2]
[367085804,1750653044594,-460.0,0.00021917,2]
[367085805,1750653044603,-460.0,0.00021917,2]
[367085806,1750653044613,-6579.89,0.00021917,2]
[367085807,1750653044622,-2325.01,0.00021917,2]
[367085808,1750653044631,-460.0,0.00021917,2]
[367085809,1750653044641,-293.27789331,0.00021917,2]
[367085810,1750653044650,-714.46,0.00021917,2]
[367085811,1750653044660,-540.46,0.00021917,2]
[367085812,1750653044670,-774.7,0.00021917,2]
[367085813,1750653044679,-460.0,0.00021917,2]
[367085814,1750653044692,-460.0,0.00021917,2]
[367085815,1750653044701,-577.13,0.00021917,2]
[367085816,1750653044710,-460.0,0.00021917,2]
[367085817,1750653044719,-1100.25,0.00021917,2]
[367085818,1750653044730,-388.7496603,0.00021917,2]
[367085819,1750653044739,-1336.88,0.00021917,2]
[367085820,1750653044749,-500.0,0.00021917,2]
[367085821,1750653044758,-500.0,0.00021917,2]
[367085822,1750653044769,-500.0,0.00021917,2]
[367085823,1750653044778,-460.0,0.00021917,2]
[367085824,1750653044787,-460.0,0.00021917,2]
[367085825,1750653044796,-460.0,0.00021917,2]
[367085826,1750653044806,-460.0,0.00021917,2]
[367085827,1750653044815,-460.0,0.00021917,2]
[367085828,1750653044824,-460.0,0.00021917,2]
[367085829,1750653044834,-460.0,0.00021917,2]
[367085830,1750653044843,-460.0,0.00021917,2]
[367085831,1750653044853,-460.0,0.00021917,2]
[367085832,1750653044863,-460.0,0.00021917,2]
[367085833,1750653044872,-460.0,0.00021917,2]
[367085834,1750653044881,-500.0,0.00021917,2]
[367085835,1750653044891,-500.0,0.00021917,2]
[367085836,1750653044900,-500.0,0.00021917,2]
[367085837,1750653044909,-500.0,0.00021917,2]
[367085838,1750653044918,-500.0,0.00021917,2]
[367085839,1750653044928,-500.0,0.00021917,2]
[367085840,1750653044937,-500.0,0.00021917,2]
[367085841,1750653044946,-500.0,0.00021917,2]
[367085842,1750653044956,-500.0,0.00021917,2]
[367085843,1750653044965,-500.0,0.00021917,2]
[367085844,1750653044974,-500.0,0.00021917,2]
[367085845,1750653044984,-500.0,0.00021917,2]
[367085846,1750653044994,-500.0,0.00021917,2]
[367085847,1750653045004,-500.0,0.00021917,2]
[367085848,1750653045014,-460.0,0.00021917,2]
[367085849,1750653045023,-500.0,0.00021917,2]
[367085850,1750653045034,-460.0,0.00021917,2]
[367085851,1750653045044,-500.0,0.00021917,2]
[367085852,1750653045053,-500.0,0.00021917,2]
[367085853,1750653045062,-465.46312975,0.00021917,2]
[367085854,1750653045071,-460.0,0.00021917,2]
[367085855,1750653045081,-455.27033712,0.00021917,2]
[367085856,1750653045090,-771.31,0.00021917,2]
[367085857,1750653045099,-460.0,0.00021917,2]
[367085858,1750653045108,-382.67804461,0.00021917,2]
[367085859,1750653045117,-509.6,0.00021917,2]
[367085860,1750653045127,-460.0,0.00021917,2]
[367085861,1750653045135,-460.0,0.00021917,2]
[367085862,1750653045144,-458.96573428,0.00021917,2]
[367085863,1750653045154,-891.85,0.00021917,2]
[367085864,1750653045163,-460.0,0.00021917,2]
[367085865,1750653045172,-460.0,0.00021917,2]
[367085866,1750653045181,-469.07939754,0.00021917,2]
[367085867,1750653045190,-460.0,0.00021917,2]
[367085868,1750653045200,-200.0,0.00021917,10]
[367085869,1750653045209,-200.0,0.00021917,10]
[367085870,1750653045218,-463.75895008,0.00021917,2]
[367085871,1750653045227,-460.0,0.00021917,2]
[367085872,1750653045236,-200.0,0.00021917,10]
[367085873,1750653045246,-200.0,0.00021917,10]
[367085874,1750653045255,-1768.08,0.00021917,2]
[367085875,1750653045264,-460.0,0.00021917,2]
[367085876,1750653045274,-2397.59,0.00021917,2]
[367085877,1750653045283,-460.0,0.00021917,2]
[367085878,1750653045292,-460.0,0.00021917,2]
[367085879,1750653045302,-460.0,0.00021917,2]
[367085880,1750653045311,-460.0,0.00021917,2]
[367085881,1750653045320,-903.83,0.00021917,2]
[367085882,1750653045329,-460.0,0.00021917,2]
[367085883,1750653045338,-464.38153812,0.00021917,2]
[367085884,1750653045347,-460.0,0.00021917,2]
[367085885,1750653045357,-709.37,0.00021917,2]
[367085886,1750653045366,-460.0,0.00021917,2]
[367085887,1750653045375,-460.0,0.00021917,2]
[367085888,1750653045385,-460.0,0.00021917,2]
[367085889,1750653045406,-151.51558414,0.00021917,2]
[367085890,1750653045415,-879.36,0.00021917,2]
[367085891,1750653045426,-460.0,0.00021917,2]
[367085892,1750653045436,-460.0,0.00021917,2]
[367085893,1750653045446,-460.0,0.00021917,2]
[367085894,1750653045456,-828.61,0.00021917,2]
[367085895,1750653045466,-607.82971585,0.00021917,2]
[367085896,1750653045476,-460.0,0.00021917,2]
[367085897,1750653045486,-5427.88,0.00021917,2]
[367085898,1750653045496,-821.21,0.00021917,2]
[367085899,1750653045507,-460.0,0.00021917,2]
[367085900,1750653045516,-742.23,0.00021917,2]
[367085901,1750653045526,-460.0,0.00021917,2]
[367085902,1750653045537,-460.0,0.00021917,2]
[367085903,1750653045547,-460.15393736,0.00021917,2]
[367085904,1750653045558,-1242.17,0.00021917,2]
[367085905,1750653045568,-1122.94,0.00021917,2]
[367085906,1750653045579,-460.0,0.00021917,2]
[367085907,1750653045589,-2335.62,0.00021917,2]
[367085908,1750653045599,-460.0,0.00021917,2]
[367085909,1750653045609,-1518.33,0.00021917,2]
[367085910,1750653045620,-460.0,0.00021917,2]
[367085911,1750653045631,-500.98158539,0.00021917,2]
[367085912,1750653045641,-3977.65,0.00021917,2]
[367085913,1750653045651,-460.0,0.00021917,2]
[367085914,1750653045662,-922.2,0.00021917,2]
[367085915,1750653045671,-517.19,0.00021917,2]
[367085916,1750653045682,-460.0,0.00021917,2]
[367085917,1750653045692,-460.0,0.00021917,2]
[367085918,1750653045702,-300.0,0.00021917,2]
[367085919,1750653045714,-460.0,0.00021917,2]
[367085920,1750653045724,-460.0,0.00021917,2]
[367085921,1750653045735,-460.0,0.00021917,2]
[367085922,1750653045745,-460.0,0.00021917,2]
[367085923,1750653045756,-9267.29,0.00021917,2]
[367085924,1750653045766,-460.0,0.00021917,2]
[367085925,1750653045777,-460.0,0.00021917,2]
[367085926,1750653045788,-460.0,0.00021917,2]
[367085927,1750653045798,-361.68697755,0.00021917,2]
[367085928,1750653045809,-460.0,0.00021917,2]
[367085929,1750653045818,-469.61,0.00021917,2]
[367085930,1750653045829,-407.3897316,0.00021917,2]
[367085931,1750653045839,-460.0,0.00021917,2]
[367085932,1750653045849,-460.0,0.00021917,2]
[367085933,1750653045859,-829.36,0.00021917,2]
[367085934,1750653045870,-2754.36,0.00021917,2]
[367085935,1750653045880,-460.0,0.00021917,2]
[367085936,1750653045890,-460.0,0.00021917,2]
[367085938,1750653045900,-460.0,0.00021917,2]
[367085940,1750653045910,-460.0,0.00021917,2]
[367085941,1750653045919,-1000.0,0.00021917,2]
[367085942,1750653045929,-460.0,0.00021917,2]
[367085943,1750653045939,-460.0,0.00021917,2]
[367085944,1750653045949,-2763.61,0.00021917,2]
[367085946,1750653045959,-460.0,0.00021917,2]
[367085948,1750653045969,-1141.1,0.00021917,2]
[367085950,1750653045979,-578.1,0.00021917,2]
[367085952,1750653045988,-1265.09,0.00021917,2]
[367085954,1750653045998,-460.0,0.00021917,2]
[367085956,1750653046007,-548.55,0.00021917,2]
[367085958,1750653046021,-3340.52,0.00021917,2]
[367085959,1750653046031,-460.0,0.00021917,2]
[367085961,1750653046041,-460.0,0.00021917,2]
[367085963,1750653046051,-460.0,0.00021917,2]
[367085965,1750653046061,-460.0,0.00021917,2]
[367085967,1750653046071,-781.05,0.00021917,2]
[367085969,1750653046081,-460.0,0.00021917,2]
[367085971,1750653046092,-460.0,0.00021917,2]
[367085972,1750653046102,-460.0,0.00021917,2]
[367085973,1750653046112,-2398.16,0.00021917,2]
[367085974,1750653046122,-2700.8,0.00021917,2]
[367085975,1750653046132,-401.19529279,0.00021917,2]
[367085976,1750653046142,-460.0,0.00021917,2]
[367085977,1750653046151,-460.0,0.00021917,2]
[367085978,1750653046161,-460.0,0.00021917,2]
[367085979,1750653046171,-460.0,0.00021917,2]
[367085980,1750653046180,-460.0,0.00021917,2]
[367085981,1750653046190,-1049.83,0.00021917,2]
[367085983,1750653046200,-510.99,0.00021917,2]
[367085984,1750653046209,-460.0,0.00021917,2]
[367085985,1750653046219,-7639.15,0.00021917,2]
[367085986,1750653046229,-612.84,0.00021917,2]
[367085987,1750653046238,-500.0,0.00021917,2]
[367085988,1750653046248,-460.0,0.00021917,2]
[367085989,1750653046257,-578.66057676,0.00021917,2]
[367085990,1750653046267,-460.0,0.00021917,2]
[367085991,1750653046277,-572.61809281,0.00021917,2]
[367085992,1750653046286,-460.0,0.00021917,2]
[367085993,1750653046296,-769.01,0.00021917,2]
[367085994,1750653046305,-460.0,0.00021917,2]
[367085995,1750653046315,-460.0,0.00021917,2]
[367085996,1750653046325,-460.0,0.00021917,2]
[367085997,1750653046334,-462.51835673,0.00021917,2]
[367085998,1750653046344,-599.54,0.00021917,2]
[367085999,1750653046354,-460.0,0.00021917,2]
[367086000,1750653046363,-1641.83,0.00021917,2]
[367086001,1750653046373,-460.0,0.00021917,2]
[367086002,1750653046382,-460.0,0.00021917,2]
[367086003,1750653046392,-460.0,0.00021917,2]
[367086004,1750653046402,-460.0,0.00021917,2]
[367086005,1750653046411,-1549.44,0.00021917,2]
[367086006,1750653046420,-521.01,0.00021917,2]
[367086007,1750653046430,-460.0,0.00021917,2]
[367086008,1750653046440,-460.0,0.00021917,2]
[367086010,1750653046450,-460.0,0.00021917,2]
[367086011,1750653046462,-1571.62,0.00021917,2]
[367086012,1750653046471,-460.0,0.00021917,2]
[367086013,1750653046481,-571.53,0.00021917,2]
[367086014,1750653046490,-460.0,0.00021917,2]
[367086015,1750653046500,-460.0,0.00021917,2]
[367086016,1750653046509,-2370.04,0.00021917,2]
[367086017,1750653046519,-5248.16,0.00021917,2]
[367086018,1750653046529,-3559.26,0.00021917,2]
[367086019,1750653046538,-460.0,0.00021917,2]
[367086020,1750653046548,-744.27,0.00021917,2]
[367086021,1750653046559,-460.0,0.00021917,2]
[367086022,1750653046568,-460.0,0.00021917,2]
[367086023,1750653046577,-460.0,0.00021917,2]
[367086024,1750653046587,-460.0,0.00021917,2]
[367086025,1750653046597,-750.2,0.00021917,2]
[367086026,1750653046607,-460.0,0.00021917,2]
[367086027,1750653046616,-20508.93,0.00021917,2]
[367086028,1750653046626,-468.48299134,0.00021917,2]
[367086029,1750653046635,-460.0,0.00021917,2]
[367086030,1750653046645,-3104.47,0.00021917,2]